[Event "*** Titled Tuesday Blitz"]
[Site "Chess.com"]
[Date "2019.04.02"]
[Round "5"]
[White "Didici"]
[Black "ChainsOfFantasia"]
[Result "0-1"]
[WhiteElo "2597"]
[BlackElo "2448"]
[TimeControl "180+2"]
[EndTime "15:02:13 PDT"]
[Termination "ChainsOfFantasia won by resignation"]

1. d4 {[%clk 0:01:22.2]} 1... Nf6 {[%clk 0:03:00.5]} 2. c4 {[%clk 0:01:22.8]}
2... e6 {[%clk 0:03:01.8]} 3. Nc3 {[%clk 0:01:23.9]} 3... d5 {[%clk 0:03:03]} 4.
cxd5 {[%clk 0:01:23.9]} 4... exd5 {[%clk 0:03:04.9]} 5. Bg5 {[%clk 0:01:24.4]}
5... Be7 {[%clk 0:03:05.3]} 6. e3 {[%clk 0:01:25.5]} 6... c6 {[%clk 0:03:06.7]}
7. Qc2 {[%clk 0:01:23.4]} 7... Nbd7 {[%clk 0:03:08.2]} 8. Bd3 {[%clk 0:01:22.2]}
8... Nh5 {[%clk 0:03:09.3]} 9. Bxe7 {[%clk 0:01:20.5]} 9... Qxe7 {[%clk
0:03:11.2]} 10. Nge2 {[%clk 0:01:21.6]} 10... g6 {[%clk 0:03:12.1]} 11. O-O
{[%clk 0:01:23]} 11... O-O {[%clk 0:03:12.1]} 12. Rae1 {[%clk 0:01:24]} 12... f5
{[%clk 0:03:13]} 13. Nc1 {[%clk 0:01:23.6]} 13... Ndf6 {[%clk 0:03:13.8]} 14.
Nb3 {[%clk 0:01:23.2]} 14... b6 {[%clk 0:03:12.9]} 15. f3 {[%clk 0:01:20.2]}
15... c5 {[%clk 0:03:10.8]} 16. e4 {[%clk 0:00:51]} 16... c4 {[%clk 0:03:05.8]}
17. Nxd5 {[%clk 0:00:51.3]} 17... Nxd5 {[%clk 0:02:57.9]} 18. Bxc4 {[%clk
0:00:52.2]} 18... Nf6 {[%clk 0:02:48.7]} 19. exd5 {[%clk 0:00:52]} 19... Qd6
{[%clk 0:02:49.6]} 20. Nc1 {[%clk 0:00:49.2]} 20... Bd7 {[%clk 0:02:45.1]} 21.
Nd3 {[%clk 0:00:50]} 21... Rac8 {[%clk 0:02:45.9]} 22. Qb3 {[%clk 0:00:47.3]}
22... b5 {[%clk 0:02:39.9]} 23. Bxb5 {[%clk 0:00:47.6]} 23... Rb8 {[%clk
0:02:41.4]} 24. Bxd7 {[%clk 0:00:27.1]} 24... Rxb3 {[%clk 0:02:37.4]} 25. Be6+
{[%clk 0:00:28.5]} 25... Kg7 {[%clk 0:02:38.8]} 26. axb3 {[%clk 0:00:29.8]}
26... Nxd5 {[%clk 0:02:25.4]} 27. Kh1 {[%clk 0:00:26.7]} 27... Nf6 {[%clk
0:02:21.9]} 28. Bc4 {[%clk 0:00:25.6]} 28... Qxd4 {[%clk 0:02:21.2]} 29. Re7+
{[%clk 0:00:25.7]} 29... Kh6 {[%clk 0:02:22.6]} 30. Ne5 {[%clk 0:00:26.3]} 30...
Nd5 {[%clk 0:02:10.1]} 31. Nf7+ {[%clk 0:00:27.2]} 31... Kg7 {[%clk 0:01:30.8]}
32. Nd6+ {[%clk 0:00:12.7]} 32... Nxe7 {[%clk 0:01:28.3]} 0-1

[Event "*** Titled Tuesday Blitz"]
[Site "Chess.com"]
[Date "2019.04.02"]
[Round "5"]
[White "Last7Samurai"]
[Black "Rap_woyska"]
[Result "1-0"]
[WhiteElo "2740"]
[BlackElo "2542"]
[TimeControl "180+2"]
[EndTime "15:02:14 PDT"]
[Termination "Last7Samurai won by resignation"]

1. e4 {[%clk 0:03:01.9]} 1... c5 {[%clk 0:03:00.8]} 2. c3 {[%clk 0:03:01.8]}
2... e6 {[%clk 0:03:01.4]} 3. d4 {[%clk 0:03:02.6]} 3... d5 {[%clk 0:03:03.3]}
4. exd5 {[%clk 0:03:01.5]} 4... Qxd5 {[%clk 0:03:05.2]} 5. Nf3 {[%clk
0:03:01.9]} 5... Nf6 {[%clk 0:03:06.6]} 6. a3 {[%clk 0:02:57.6]} 6... Be7 {[%clk
0:03:02.7]} 7. Be3 {[%clk 0:02:57.9]} 7... cxd4 {[%clk 0:02:58.1]} 8. cxd4
{[%clk 0:02:59.8]} 8... O-O {[%clk 0:02:58.3]} 9. Nc3 {[%clk 0:03:00.5]} 9...
Qd6 {[%clk 0:02:55.5]} 10. Bd3 {[%clk 0:03:00.7]} 10... Nc6 {[%clk 0:02:55.9]}
11. O-O {[%clk 0:03:00.9]} 11... b6 {[%clk 0:02:57.3]} 12. Qe2 {[%clk 0:02:54]}
12... Bb7 {[%clk 0:02:58.2]} 13. Rad1 {[%clk 0:02:39.8]} 13... Rac8 {[%clk
0:02:54.5]} 14. Rfe1 {[%clk 0:02:39.8]} 14... Rfd8 {[%clk 0:02:54.4]} 15. Bb1
{[%clk 0:02:37]} 15... Qb8 {[%clk 0:02:45.7]} 16. Ba2 {[%clk 0:02:35.1]} 16...
Na5 {[%clk 0:02:44.5]} 17. Ne5 {[%clk 0:02:32.7]} 17... Nd5 {[%clk 0:02:31.8]}
18. Bd2 {[%clk 0:02:25.6]} 18... Nxc3 {[%clk 0:02:06.2]} 19. Bxc3 {[%clk
0:02:26.1]} 19... Rf8 {[%clk 0:00:42.2]} 20. Nxf7 {[%clk 0:02:20.4]} 20... Rxf7
{[%clk 0:00:44.1]} 21. Qxe6 {[%clk 0:02:20.5]} 21... Qf4 {[%clk 0:00:18.9]} 22.
Re2 {[%clk 0:02:03]} 22... Bf8 {[%clk 0:00:20]} 23. Rde1 {[%clk 0:01:33.2]}
23... Rc7 {[%clk 0:00:20.7]} 24. Qe8 {[%clk 0:01:04.6]} 24... Ba6 {[%clk
0:00:18.7]} 25. Qxf8+ {[%clk 0:00:59.6]} 1-0

[Event "*** Titled Tuesday Blitz"]
[Site "Chess.com"]
[Date "2019.04.02"]
[Round "5"]
[White "Koksal06"]
[Black "saraswathii"]
[Result "1-0"]
[WhiteElo "2238"]
[BlackElo "2222"]
[TimeControl "180+2"]
[EndTime "15:02:14 PDT"]
[Termination "Koksal06 won by resignation"]

1. d4 {[%clk 0:03:01.9]} 1... Nf6 {[%clk 0:02:55.8]} 2. c4 {[%clk 0:03:03]} 2...
d6 {[%clk 0:02:54.2]} 3. Nc3 {[%clk 0:03:03.4]} 3... g6 {[%clk 0:02:55.2]} 4. e4
{[%clk 0:03:04.1]} 4... Bg7 {[%clk 0:02:55]} 5. f3 {[%clk 0:03:05.1]} 5... O-O
{[%clk 0:02:54.7]} 6. Be3 {[%clk 0:03:01.3]} 6... Nbd7 {[%clk 0:02:51.7]} 7. Qd2
{[%clk 0:03:01.8]} 7... e5 {[%clk 0:02:47.1]} 8. Nge2 {[%clk 0:03:02.9]} 8...
exd4 {[%clk 0:02:47.6]} 9. Nxd4 {[%clk 0:03:04]} 9... Re8 {[%clk 0:02:48]} 10.
Be2 {[%clk 0:03:05.1]} 10... Nb6 {[%clk 0:02:48.4]} 11. O-O {[%clk 0:03:05.3]}
11... Nfd7 {[%clk 0:02:48.9]} 12. Rac1 {[%clk 0:03:04.9]} 12... Ne5 {[%clk
0:02:49.4]} 13. b3 {[%clk 0:03:06.1]} 13... Bd7 {[%clk 0:02:46.9]} 14. Rfd1
{[%clk 0:03:06.5]} 14... Qe7 {[%clk 0:02:45.7]} 15. a4 {[%clk 0:03:00.1]} 15...
a5 {[%clk 0:02:45.4]} 16. Ndb5 {[%clk 0:03:00.7]} 16... Bxb5 {[%clk 0:02:44]}
17. Nxb5 {[%clk 0:02:52.9]} 17... Nc8 {[%clk 0:02:34.9]} 18. Bf2 {[%clk
0:02:47.1]} 18... Rd8 {[%clk 0:02:28.8]} 19. c5 {[%clk 0:02:45.2]} 19... Bf8
{[%clk 0:02:20.9]} 20. cxd6 {[%clk 0:02:43.4]} 20... cxd6 {[%clk 0:02:06.2]} 21.
Nc7 {[%clk 0:02:44.3]} 21... Rb8 {[%clk 0:02:05.7]} 22. Nd5 {[%clk 0:02:45.3]}
22... Qe6 {[%clk 0:02:06.8]} 23. Qxa5 {[%clk 0:02:44.1]} 23... Ne7 {[%clk
0:01:31.6]} 24. Nf4 {[%clk 0:02:35.2]} 24... Qf6 {[%clk 0:01:29.8]} 25. Nd5
{[%clk 0:02:36.3]} 25... Nxd5 {[%clk 0:01:21.9]} 26. Qxd5 {[%clk 0:02:37]} 26...
Nc6 {[%clk 0:01:20.2]} 27. Bb5 {[%clk 0:02:29.1]} 27... Ne5 {[%clk 0:01:18.2]}
28. Bb6 {[%clk 0:02:19.8]} 28... Rdc8 {[%clk 0:01:17.4]} 29. Be2 {[%clk
0:02:14.6]} 29... Nd7 {[%clk 0:01:13.4]} 30. Bd4 {[%clk 0:02:07.3]} 30... Qe6
{[%clk 0:01:03.2]} 31. Rxc8 {[%clk 0:02:05.7]} 31... Rxc8 {[%clk 0:01:01.8]} 32.
Qxb7 {[%clk 0:01:59.3]} 32... Rb8 {[%clk 0:00:47.9]} 33. Qa6 {[%clk 0:01:38.7]}
33... Qxb3 {[%clk 0:00:43.1]} 34. Qc4 {[%clk 0:01:37]} 34... Qb7 {[%clk
0:00:34.7]} 35. a5 {[%clk 0:01:34.5]} 35... Rc8 {[%clk 0:00:35.5]} 36. Qd5
{[%clk 0:01:33.2]} 36... Qxd5 {[%clk 0:00:33.5]} 1-0

[Event "*** Titled Tuesday Blitz"]
[Site "Chess.com"]
[Date "2019.04.02"]
[Round "5"]
[White "Aemulus20"]
[Black "area_5"]
[Result "0-1"]
[WhiteElo "2502"]
[BlackElo "2685"]
[TimeControl "180+2"]
[EndTime "15:02:19 PDT"]
[Termination "area_5 won by checkmate"]

1. e4 {[%clk 0:03:01.9]} 1... g6 {[%clk 0:03:01.9]} 2. d4 {[%clk 0:03:01.9]}
2... Bg7 {[%clk 0:03:02.9]} 3. Nc3 {[%clk 0:02:57.4]} 3... c6 {[%clk 0:03:03.9]}
4. Nf3 {[%clk 0:02:55.1]} 4... d5 {[%clk 0:03:04.3]} 5. h3 {[%clk 0:02:55.7]}
5... Nh6 {[%clk 0:03:04.8]} 6. Bd3 {[%clk 0:02:35]} 6... f6 {[%clk 0:03:05.3]}
7. Qe2 {[%clk 0:02:27.3]} 7... Nf7 {[%clk 0:03:04.4]} 8. e5 {[%clk 0:02:14.7]}
8... fxe5 {[%clk 0:03:03.5]} 9. Nxe5 {[%clk 0:02:09]} 9... Nxe5 {[%clk
0:03:04.4]} 10. dxe5 {[%clk 0:02:10]} 10... Nd7 {[%clk 0:03:04]} 11. f4 {[%clk
0:01:52.7]} 11... Nc5 {[%clk 0:03:00.7]} 12. O-O {[%clk 0:01:50.3]} 12... O-O
{[%clk 0:02:54.7]} 13. Kh1 {[%clk 0:01:28.6]} 13... b5 {[%clk 0:02:37.3]} 14. a4
{[%clk 0:01:18.2]} 14... b4 {[%clk 0:02:36.3]} 15. Nd1 {[%clk 0:01:17.9]} 15...
b3 {[%clk 0:02:20.2]} 16. Be3 {[%clk 0:01:10.3]} 16... d4 {[%clk 0:02:15.3]} 17.
Bc4+ {[%clk 0:01:05.2]} 17... Kh8 {[%clk 0:02:11.3]} 18. Bg1 {[%clk 0:01:01.8]}
18... Rb8 {[%clk 0:01:50]} 19. cxb3 {[%clk 0:00:53.3]} 19... Nxb3 {[%clk
0:01:48.8]} 20. Ra3 {[%clk 0:00:44.8]} 20... Na5 {[%clk 0:01:45.8]} 21. Bd3
{[%clk 0:00:28.6]} 21... c5 {[%clk 0:01:46.1]} 22. Nf2 {[%clk 0:00:22.1]} 22...
c4 {[%clk 0:01:40.1]} 23. Bxc4 {[%clk 0:00:19.3]} 23... Nxc4 {[%clk 0:01:40.7]}
24. Qxc4 {[%clk 0:00:21.2]} 24... Rxf4 {[%clk 0:01:39.7]} 25. Rd1 {[%clk
0:00:11.8]} 25... Bb7 {[%clk 0:01:32.4]} 26. Nd3 {[%clk 0:00:11.2]} 26... Bd5
{[%clk 0:01:23.1]} 27. Qc5 {[%clk 0:00:07.9]} 27... Rh4 {[%clk 0:01:22.9]} 28.
Nb4 {[%clk 0:00:08.8]} 28... Ba8 {[%clk 0:01:21.4]} 29. Nc6 {[%clk 0:00:08.2]}
29... Qc8 {[%clk 0:01:15.6]} 30. Qxe7 {[%clk 0:00:09.2]} 30... Qxc6 {[%clk
0:01:10.3]} 31. Qxh4 {[%clk 0:00:09.2]} 31... Qxg2# {[%clk 0:01:10.9]} 0-1

[Event "*** Titled Tuesday Blitz"]
[Site "Chess.com"]
[Date "2019.04.02"]
[Round "5"]
[White "Andreikka"]
[Black "PaulfromSPb"]
[Result "1-0"]
[WhiteElo "2867"]
[BlackElo "2650"]
[TimeControl "180+2"]
[EndTime "15:02:22 PDT"]
[Termination "Andreikka won by resignation"]

1. d4 {[%clk 0:03:00.9]} 1... Nf6 {[%clk 0:02:59.5]} 2. Nf3 {[%clk 0:03:02.4]}
2... e6 {[%clk 0:02:58.9]} 3. c4 {[%clk 0:03:03.9]} 3... b6 {[%clk 0:02:58.9]}
4. g3 {[%clk 0:03:05.4]} 4... Ba6 {[%clk 0:02:59.5]} 5. Qc2 {[%clk 0:03:06.2]}
5... c5 {[%clk 0:02:57.6]} 6. d5 {[%clk 0:03:07.5]} 6... exd5 {[%clk 0:02:58.6]}
7. cxd5 {[%clk 0:03:09.4]} 7... Bb7 {[%clk 0:02:59.8]} 8. Bg2 {[%clk 0:03:11.1]}
8... Nxd5 {[%clk 0:03:00.3]} 9. O-O {[%clk 0:03:12.7]} 9... Nc7 {[%clk
0:02:57.5]} 10. e4 {[%clk 0:03:06.9]} 10... Nc6 {[%clk 0:02:56.4]} 11. Nc3
{[%clk 0:03:08.2]} 11... Be7 {[%clk 0:02:55.6]} 12. Be3 {[%clk 0:03:07.7]} 12...
O-O {[%clk 0:02:53.9]} 13. Rad1 {[%clk 0:03:09.3]} 13... Qe8 {[%clk 0:02:37]}
14. Rfe1 {[%clk 0:03:09.4]} 14... Rd8 {[%clk 0:02:36.1]} 15. h4 {[%clk
0:03:07.7]} 15... f6 {[%clk 0:02:14.5]} 16. a3 {[%clk 0:03:08]} 16... Qf7 {[%clk
0:02:10]} 17. Nd5 {[%clk 0:03:02.7]} 17... Ne6 {[%clk 0:01:58.1]} 18. Qc3 {[%clk
0:02:42.8]} 18... Rfe8 {[%clk 0:01:53.9]} 19. e5 {[%clk 0:02:34]} 19... fxe5
{[%clk 0:01:33.5]} 20. Nxe5 {[%clk 0:02:23.9]} 20... Nxe5 {[%clk 0:01:34.2]} 21.
Qxe5 {[%clk 0:02:18.1]} 21... Bf8 {[%clk 0:01:27.1]} 22. Qc3 {[%clk 0:02:19.4]}
22... Nd4 {[%clk 0:01:15.4]} 23. Bxd4 {[%clk 0:02:04.9]} 23... Rxe1+ {[%clk
0:01:14.6]} 24. Qxe1 {[%clk 0:01:28.8]} 24... Re8 {[%clk 0:01:03.5]} 25. Be3
{[%clk 0:01:29.1]} 25... Re5 {[%clk 0:00:51.3]} 26. Qd2 {[%clk 0:01:29.9]} 26...
h6 {[%clk 0:00:46.3]} 27. Qd3 {[%clk 0:01:27.8]} 27... a6 {[%clk 0:00:45.8]} 28.
b4 {[%clk 0:01:27.8]} 28... cxb4 {[%clk 0:00:45.7]} 29. axb4 {[%clk 0:01:28.4]}
29... a5 {[%clk 0:00:47.1]} 30. bxa5 {[%clk 0:01:25.6]} 30... bxa5 {[%clk
0:00:48.2]} 31. Qb5 {[%clk 0:01:24.2]} 31... Bc6 {[%clk 0:00:44.1]} 32. Qxa5
{[%clk 0:01:25.6]} 32... Kh8 {[%clk 0:00:43.6]} 33. Qd2 {[%clk 0:01:24.7]} 33...
Rf5 {[%clk 0:00:40]} 34. Qd3 {[%clk 0:01:23.8]} 34... Re5 {[%clk 0:00:38.9]} 35.
Nf4 {[%clk 0:01:24.3]} 35... Kg8 {[%clk 0:00:35.6]} 36. Bxc6 {[%clk 0:01:21.3]}
36... dxc6 {[%clk 0:00:37.5]} 37. Rc1 {[%clk 0:01:22.4]} 37... c5 {[%clk
0:00:37.4]} 38. Qc4 {[%clk 0:01:22.8]} 38... Qxc4 {[%clk 0:00:35.6]} 39. Rxc4
{[%clk 0:01:24.7]} 39... Kf7 {[%clk 0:00:36.7]} 40. Nd3 {[%clk 0:01:25.2]} 1-0

[Event "*** Titled Tuesday Blitz"]
[Site "Chess.com"]
[Date "2019.04.02"]
[Round "5"]
[White "krzysztofszczurek"]
[Black "eldur16"]
[Result "0-1"]
[WhiteElo "2399"]
[BlackElo "2510"]
[TimeControl "180+2"]
[EndTime "15:02:36 PDT"]
[Termination "eldur16 won by resignation"]

1. e4 {[%clk 0:03:01.9]} 1... g6 {[%clk 0:02:59.3]} 2. d4 {[%clk 0:02:59.9]}
2... Bg7 {[%clk 0:03:00.2]} 3. Nc3 {[%clk 0:02:59.9]} 3... d6 {[%clk 0:03:01.3]}
4. Be3 {[%clk 0:02:59.4]} 4... a6 {[%clk 0:03:02]} 5. a4 {[%clk 0:02:50.9]} 5...
Nc6 {[%clk 0:03:00.5]} 6. Qd2 {[%clk 0:02:50.9]} 6... e5 {[%clk 0:03:00.6]} 7.
dxe5 {[%clk 0:02:47.6]} 7... Nxe5 {[%clk 0:03:00.7]} 8. f3 {[%clk 0:02:47.6]}
8... Nf6 {[%clk 0:02:56.6]} 9. Be2 {[%clk 0:02:37.9]} 9... O-O {[%clk
0:02:52.8]} 10. Bh6 {[%clk 0:02:36.4]} 10... Nxe4 {[%clk 0:02:48.8]} 11. Nxe4
{[%clk 0:02:17.4]} 11... Qh4+ {[%clk 0:02:48.9]} 12. g3 {[%clk 0:02:07]} 12...
Qxh6 {[%clk 0:02:49.4]} 13. f4 {[%clk 0:02:08.1]} 13... Nc6 {[%clk 0:02:46.4]}
14. c3 {[%clk 0:02:07.9]} 14... Re8 {[%clk 0:02:42.4]} 15. Nf2 {[%clk
0:02:08.8]} 15... Be6 {[%clk 0:02:24]} 16. h4 {[%clk 0:01:59.5]} 16... f5 {[%clk
0:01:33]} 17. h5 {[%clk 0:01:33.3]} 17... Bf6 {[%clk 0:01:32]} 18. hxg6 {[%clk
0:01:30.8]} 18... Qxg6 {[%clk 0:01:31.8]} 19. Bh5 {[%clk 0:01:31.2]} 19... Bf7+
{[%clk 0:00:58.9]} 20. Ne2 {[%clk 0:01:20.2]} 20... Qg7 {[%clk 0:00:57.3]} 21.
Bxf7+ {[%clk 0:01:19]} 21... Qxf7 {[%clk 0:00:57.1]} 22. O-O-O {[%clk
0:01:19.1]} 22... Na5 {[%clk 0:00:54]} 23. Kb1 {[%clk 0:01:15]} 23... Nc4 {[%clk
0:00:51.3]} 24. Qd3 {[%clk 0:00:59.6]} 24... Re3 {[%clk 0:00:25.2]} 25. Qc2
{[%clk 0:01:00.2]} 25... Rae8 {[%clk 0:00:24.1]} 26. Ng1 {[%clk 0:00:52.2]}
26... Rxg3 {[%clk 0:00:21.2]} 27. Qxf5 {[%clk 0:00:47.9]} 27... Nxb2 {[%clk
0:00:22]} 28. Ngh3 {[%clk 0:00:38.6]} 28... Nxd1 {[%clk 0:00:21.7]} 0-1

[Event "*** Titled Tuesday Blitz"]
[Site "Chess.com"]
[Date "2019.04.02"]
[Round "5"]
[White "bascheyaro"]
[Black "fm_magua"]
[Result "1-0"]
[WhiteElo "2725"]
[BlackElo "2514"]
[TimeControl "180+2"]
[EndTime "15:02:36 PDT"]
[Termination "bascheyaro won by resignation"]

1. d4 {[%clk 0:02:58.9]} 1... Nf6 {[%clk 0:02:57.2]} 2. c4 {[%clk 0:03:00.3]}
2... g6 {[%clk 0:02:57.9]} 3. Nf3 {[%clk 0:03:01.7]} 3... Bg7 {[%clk 0:02:59.4]}
4. Nc3 {[%clk 0:03:03.3]} 4... O-O {[%clk 0:03:01]} 5. e4 {[%clk 0:03:04.7]}
5... d6 {[%clk 0:03:02.7]} 6. Be2 {[%clk 0:03:06.1]} 6... e5 {[%clk 0:03:01.9]}
7. d5 {[%clk 0:03:07.4]} 7... Nbd7 {[%clk 0:03:01.4]} 8. Bg5 {[%clk 0:03:08.4]}
8... h6 {[%clk 0:03:02.3]} 9. Be3 {[%clk 0:03:09]} 9... a5 {[%clk 0:03:03.6]}
10. Nd2 {[%clk 0:03:10.1]} 10... Nc5 {[%clk 0:03:04.2]} 11. b3 {[%clk
0:03:10.9]} 11... c6 {[%clk 0:03:04.3]} 12. O-O {[%clk 0:03:10.3]} 12... cxd5
{[%clk 0:03:05.5]} 13. cxd5 {[%clk 0:03:08.6]} 13... b6 {[%clk 0:03:05.9]} 14.
a3 {[%clk 0:03:09.1]} 14... Ba6 {[%clk 0:03:06.9]} 15. Bxa6 {[%clk 0:03:06.7]}
15... Nxa6 {[%clk 0:03:07.2]} 16. Qe2 {[%clk 0:03:06.8]} 16... Nh5 {[%clk
0:03:05.7]} 17. Rfc1 {[%clk 0:02:59.7]} 17... Nf4 {[%clk 0:03:05.6]} 18. Qf1
{[%clk 0:03:00.5]} 18... f5 {[%clk 0:03:04.5]} 19. Na4 {[%clk 0:02:51.1]} 19...
Nc5 {[%clk 0:03:04.9]} 20. Nxc5 {[%clk 0:02:48]} 20... bxc5 {[%clk 0:03:06.1]}
21. Rab1 {[%clk 0:02:46]} 21... Nh3+ {[%clk 0:02:59.4]} 22. gxh3 {[%clk
0:02:45.6]} 22... f4 {[%clk 0:03:00.7]} 23. Bxc5 {[%clk 0:02:46.6]} 23... dxc5
{[%clk 0:03:02]} 24. Nf3 {[%clk 0:02:42.7]} 24... Qd6 {[%clk 0:02:56.8]} 25. Rc3
{[%clk 0:02:40.9]} 25... Rfb8 {[%clk 0:02:50]} 26. Rbc1 {[%clk 0:02:41.3]} 26...
g5 {[%clk 0:02:37.7]} 27. Rxc5 {[%clk 0:02:32.8]} 27... Rxb3 {[%clk 0:02:38.3]}
28. Rc6 {[%clk 0:02:33.6]} 28... Qb8 {[%clk 0:02:38.8]} 29. Qd1 {[%clk
0:02:03.1]} 29... Qb5 {[%clk 0:02:30.9]} 30. d6 {[%clk 0:02:03]} 30... Rd8
{[%clk 0:02:15.9]} 31. a4 {[%clk 0:02:03.9]} 31... Qd3 {[%clk 0:02:14.7]} 32.
Kg2 {[%clk 0:01:49.1]} 32... Bf8 {[%clk 0:02:09.2]} 33. Qxd3 {[%clk 0:01:35.4]}
33... Rxd3 {[%clk 0:02:10]} 34. R6c5 {[%clk 0:01:32.3]} 34... Bxd6 {[%clk
0:01:59.8]} 35. Rxa5 {[%clk 0:01:33]} 35... Ba3 {[%clk 0:01:48.8]} 36. Rc7
{[%clk 0:01:32.6]} 36... Bd6 {[%clk 0:01:45.6]} 37. Rc6 {[%clk 0:01:32.6]} 37...
Kf7 {[%clk 0:01:39.2]} 38. Rxe5 {[%clk 0:00:58.4]} 38... g4 {[%clk 0:01:21.5]}
39. Rf5+ {[%clk 0:00:58.5]} 39... Ke7 {[%clk 0:01:22.7]} 40. hxg4 {[%clk
0:00:59.6]} 40... Rb8 {[%clk 0:01:20.8]} 41. e5 {[%clk 0:00:59.8]} 41... Ba3
{[%clk 0:01:13.5]} 42. Rc7+ {[%clk 0:01:01]} 42... Ke6 {[%clk 0:01:13.1]} 43.
Rf6+ {[%clk 0:00:58.7]} 43... Kd5 {[%clk 0:01:14.3]} 44. Rd7+ {[%clk 0:00:59.8]}
44... Ke4 {[%clk 0:01:15.4]} 45. Rxd3 {[%clk 0:01:00.2]} 45... Kxd3 {[%clk
0:01:15.9]} 46. Rxf4 {[%clk 0:01:01.5]} 1-0

[Event "*** Titled Tuesday Blitz"]
[Site "Chess.com"]
[Date "2019.04.02"]
[Round "5"]
[White "2165149677570"]
[Black "Haykos"]
[Result "0-1"]
[WhiteElo "2375"]
[BlackElo "2571"]
[TimeControl "180+2"]
[EndTime "15:02:38 PDT"]
[Termination "Haykos won by resignation"]

1. e4 {[%clk 0:03:01.9]} 1... c5 {[%clk 0:03:01]} 2. Nf3 {[%clk 0:03:03]} 2...
e6 {[%clk 0:03:01.8]} 3. d4 {[%clk 0:03:03.9]} 3... cxd4 {[%clk 0:03:03.7]} 4.
Nxd4 {[%clk 0:03:05.7]} 4... Nf6 {[%clk 0:03:04.7]} 5. Nc3 {[%clk 0:03:05.9]}
5... Nc6 {[%clk 0:03:06.4]} 6. Nxc6 {[%clk 0:03:04.3]} 6... bxc6 {[%clk
0:03:08.3]} 7. e5 {[%clk 0:03:05.6]} 7... Nd5 {[%clk 0:03:09.4]} 8. Ne4 {[%clk
0:03:07]} 8... Qc7 {[%clk 0:03:10.9]} 9. f4 {[%clk 0:03:08.1]} 9... Qb6 {[%clk
0:03:12.5]} 10. c4 {[%clk 0:03:09.7]} 10... Bb4+ {[%clk 0:03:14.1]} 11. Ke2
{[%clk 0:03:11.3]} 11... f5 {[%clk 0:03:15.1]} 12. Nf2 {[%clk 0:03:11]} 12...
Ba6 {[%clk 0:02:56]} 13. Kf3 {[%clk 0:03:10.9]} 13... Ne7 {[%clk 0:02:56.8]} 14.
Be3 {[%clk 0:03:11.5]} 14... c5 {[%clk 0:02:56.5]} 15. a3 {[%clk 0:03:10.6]}
15... Ba5 {[%clk 0:02:49]} 16. Kg3 {[%clk 0:03:04.5]} 16... Qc6 {[%clk
0:02:42.6]} 17. b4 {[%clk 0:02:58.3]} 17... cxb4 {[%clk 0:02:43]} 18. axb4
{[%clk 0:03:00.2]} 18... Bxb4 {[%clk 0:02:44.4]} 19. Qa4 {[%clk 0:03:01.8]}
19... Bxc4 {[%clk 0:01:47.1]} 20. Qxb4 {[%clk 0:02:35.6]} 20... Bxf1 {[%clk
0:01:44.1]} 21. Rhxf1 {[%clk 0:02:35.9]} 21... Nd5 {[%clk 0:01:44.9]} 22. Qc5
{[%clk 0:02:28]} 22... Qxc5 {[%clk 0:01:30.1]} 23. Bxc5 {[%clk 0:02:29.2]} 23...
a5 {[%clk 0:01:26.3]} 24. Nd1 {[%clk 0:02:15.7]} 24... Kf7 {[%clk 0:01:24.3]}
25. Ne3 {[%clk 0:02:16.7]} 25... Nc3 {[%clk 0:01:23.2]} 26. Rfc1 {[%clk
0:02:06.2]} 26... Ne2+ {[%clk 0:01:21.8]} 27. Kf3 {[%clk 0:02:07.4]} 27... Nxc1
{[%clk 0:01:23.7]} 28. Rxc1 {[%clk 0:02:08.7]} 28... Rhc8 {[%clk 0:01:21.7]} 29.
Nc4 {[%clk 0:02:10.2]} 29... Rc6 {[%clk 0:01:20.4]} 30. Nb6 {[%clk 0:01:53.9]}
30... Rb8 {[%clk 0:01:17.6]} 31. Nxd7 {[%clk 0:01:53.3]} 31... Rb7 {[%clk
0:01:17.4]} 32. Nb6 {[%clk 0:01:33.1]} 32... Rbxb6 {[%clk 0:01:17.1]} 33. Bxb6
{[%clk 0:01:35]} 33... Rxc1 {[%clk 0:01:13.9]} 34. Bxa5 {[%clk 0:01:35.9]} 34...
g5 {[%clk 0:01:13.8]} 35. fxg5 {[%clk 0:01:34.9]} 35... Rc5 {[%clk 0:01:09.9]}
36. Bd8 {[%clk 0:01:26.1]} 36... Rxe5 {[%clk 0:01:10.9]} 37. h4 {[%clk
0:01:26.9]} 37... Kg6 {[%clk 0:01:10.8]} 38. g4 {[%clk 0:01:22.3]} 38... fxg4+
{[%clk 0:01:08.6]} 39. Kxg4 {[%clk 0:01:24.2]} 39... Re4+ {[%clk 0:01:08.6]} 40.
Kg3 {[%clk 0:01:25]} 40... Kf5 {[%clk 0:01:06.9]} 41. h5 {[%clk 0:01:22.6]}
41... Rd4 {[%clk 0:01:07.5]} 42. Bf6 {[%clk 0:01:23]} 42... Rd3+ {[%clk
0:01:07.3]} 43. Kh4 {[%clk 0:01:21.8]} 43... h6 {[%clk 0:01:04.8]} 44. Be7
{[%clk 0:01:08.8]} 44... hxg5+ {[%clk 0:00:54.2]} 45. Bxg5 {[%clk 0:01:10.7]}
45... Rd4+ {[%clk 0:00:55.7]} 0-1

[Event "*** Titled Tuesday Blitz"]
[Site "Chess.com"]
[Date "2019.04.02"]
[Round "5"]
[White "SoltaniciR"]
[Black "m3alam"]
[Result "0-1"]
[WhiteElo "2586"]
[BlackElo "2432"]
[TimeControl "180+2"]
[EndTime "15:02:44 PDT"]
[Termination "m3alam won by resignation"]

1. e4 {[%clk 0:02:59.1]} 1... c6 {[%clk 0:02:59.7]} 2. Nf3 {[%clk 0:02:59.4]}
2... d5 {[%clk 0:02:55.5]} 3. Nc3 {[%clk 0:03:00.2]} 3... Nf6 {[%clk 0:02:54.3]}
4. e5 {[%clk 0:03:00.1]} 4... Ne4 {[%clk 0:02:44.2]} 5. Ne2 {[%clk 0:03:00.5]}
5... Qb6 {[%clk 0:02:40.5]} 6. d4 {[%clk 0:03:01.1]} 6... e6 {[%clk 0:02:31.7]}
7. Ng3 {[%clk 0:03:01.5]} 7... c5 {[%clk 0:02:24.6]} 8. c3 {[%clk 0:02:54.1]}
8... cxd4 {[%clk 0:02:17.7]} 9. Nxe4 {[%clk 0:02:53.5]} 9... dxe4 {[%clk
0:02:10.1]} 10. Nxd4 {[%clk 0:02:54.5]} 10... Bd7 {[%clk 0:02:07.6]} 11. Qg4
{[%clk 0:02:06.8]} 11... Nc6 {[%clk 0:02:07.1]} 12. Qxe4 {[%clk 0:02:01.6]}
12... Bc5 {[%clk 0:02:07]} 13. Bd3 {[%clk 0:01:39.7]} 13... Nxd4 {[%clk
0:02:03.3]} 14. cxd4 {[%clk 0:01:40.5]} 14... Bxd4 {[%clk 0:02:04.1]} 15. O-O
{[%clk 0:01:40.4]} 15... Rd8 {[%clk 0:02:00.2]} 16. Bg5 {[%clk 0:01:38.6]} 16...
Rc8 {[%clk 0:01:36.7]} 17. Rad1 {[%clk 0:01:27.4]} 17... Bc6 {[%clk 0:01:32.8]}
18. Qh4 {[%clk 0:00:57.8]} 18... h6 {[%clk 0:01:26.8]} 19. Kh1 {[%clk
0:00:57.7]} 19... Qxb2 {[%clk 0:01:21.9]} 20. Bc1 {[%clk 0:00:52.8]} 20... Qc3
{[%clk 0:01:12.7]} 21. f4 {[%clk 0:00:46.3]} 21... Ba4 {[%clk 0:01:05.8]} 22. f5
{[%clk 0:00:39.6]} 22... exf5 {[%clk 0:00:58.4]} 23. Bxf5 {[%clk 0:00:35.4]}
23... Bxd1 {[%clk 0:00:55.7]} 24. Bxc8 {[%clk 0:00:35.6]} 24... Be2 {[%clk
0:00:49.9]} 25. Bd7+ {[%clk 0:00:20]} 25... Kxd7 {[%clk 0:00:42.1]} 26. Rxf7+
{[%clk 0:00:19.6]} 26... Kc8 {[%clk 0:00:38.3]} 27. Qf4 {[%clk 0:00:15.3]} 27...
Qe1+ {[%clk 0:00:34.3]} 0-1